bitfinex-derivatives/quotes_ETHF0:USTF0_20250404
["timestamp","ask_amount","ask_price","bid_price","bid_amount"]
[1743762743948,0.00833704,1798.3,1798.2,1.11231]
[1743762744248,7.04e-06,1798.3,1798.2,8.61831]
[1743762744646,7.04e-06,1798.3,1798.2,10.11181]
[1743762745051,7.04e-06,1798.3,1798.2,43.40581]
[1743762745244,1.51530704,1798.3,1798.1,1.11233]
[1743762745443,1.51530704,1798.3,1798.0,0.00833704]
[1743762745844,3.2078,1798.2,1798.0,1.51023704]
[1743762746146,1.4783,1798.1,1798.0,0.00833704]
[1743762746344,1.4783,1798.1,1798.0,1.12076704]
[1743762746545,4.6861,1798.1,1798.0,1.12076704]
[1743762746743,3.20780704,1798.3,1798.1,1.11233]
[1743762746942,7.04e-06,1798.3,1798.2,1.11231]
[1743762747142,7.04e-06,1798.3,1798.2,5.82201]
[1743762747357,0.9109,1799.2,1798.4,2.78036]
[1743762747544,0.9109,1799.2,1798.7,2.77993]
[1743762747744,2.3892,1799.2,1798.9,1.11186]
[1743762747940,2.3892,1799.2,1799.1,1.11175]
[1743762748142,0.9109,1799.2,1799.1,1.11175]
[1743762748544,2.3894,1799.2,1799.1,1.11175]
[1743762748844,2.77938,1799.1,1798.3,3.2078]
[1743762749049,13.9252,1799.2,1797.8,8.2248]
[1743762749050,1.11217,1798.5,1797.8,8.2248]
[1743762749247,3.2078,1798.2,1797.8,5.017]
[1743762749447,1.4785,1798.1,1798.0,1.11243]
[1743762749647,1.4785,1798.1,1797.9,1.4085]
[1743762749848,3.2078,1798.0,1797.9,2.52099]
[1743762750047,3.2078,1798.0,1797.9,1.4085]
[1743762750448,3.2078,1798.0,1797.9,2.52099]
[1743762750753,3.2078,1798.1,1798.0,1.11243]
[1743762750947,0.00833704,1798.2,1798.1,1.11237]
[1743762751148,0.00833704,1798.2,1798.0,2.52089]
[1743762751351,5.71613704,1798.2,1797.8,0.00833704]
[1743762751548,3.2078,1798.0,1797.8,0.00833704]
[1743762751747,0.9573,1797.9,1797.8,1.12088704]
[1743762752146,1.4328,1798.1,1798.0,1.11243]
[1743762752350,0.00833704,1798.2,1798.0,1.11239]
[1743762752650,3.2078,1798.1,1797.9,1.5225]
[1743762752853,1.4328,1798.0,1797.9,2.63499]
[1743762753052,0.00833704,1798.2,1798.1,1.11237]
[1743762753245,0.9573,1798.5,1798.2,1.11226]
[1743762753449,0.9573,1798.5,1798.4,1.11218]
[1743762753643,3.2078,1798.8,1798.7,1.112]
[1743762753951,2.3733,1798.9,1798.8,1.11194]
[1743762754255,3.2078,1799.4,1799.3,1.11163]
[1743762754452,0.00833704,1799.0,1798.9,6.12687]
[1743762754957,0.00833704,1799.0,1798.8,1.12025704]
[1743762755156,0.00833704,1799.0,1798.8,0.00833704]
[1743762755656,1.48313704,1799.0,1798.8,0.00833704]
[1743762755856,1.11187,1798.9,1798.8,0.00833704]
[1743762756261,1.112,1798.7,1798.3,6.11721]
[1743762756459,3.2078,1798.4,1798.1,1.11233]
[1743762756759,1.4748,1798.3,1798.2,1.11231]
[1743762757146,3.2078,1798.4,1798.0,7.78605]
[1743762757352,3.2078,1798.9,1798.3,5.98838]
[1743762757552,4.7363,1798.9,1798.8,1.11194]
[1743762757758,1.5285,1798.9,1798.5,3.2078]
[1743762757955,3.2078,1798.8,1798.5,1.11209]
[1743762758257,1.5285,1798.7,1798.4,5.008]
[1743762758454,1.5285,1798.7,1798.5,1.11208]
[1743762758751,1.5285,1798.7,1798.5,1.11211]
[1743762758956,1.5285,1798.7,1798.6,1.11206]
[1743762759554,1.5285,1798.7,1798.5,1.1121]
[1743762759754,1.5285,1798.7,1798.6,1.11206]
[1743762760157,1.5285,1798.7,1798.5,1.11208]
[1743762760356,2.64052,1798.7,1798.3,8.2098]
[1743762760571,2.64052,1798.7,1798.3,4.32002]
[1743762761057,3.2078,1798.6,1798.3,1.11222]
[1743762761260,1.4699,1798.5,1798.3,1.11224]
[1743762761561,1.4699,1798.5,1798.4,1.11218]
[1743762761761,3.2078,1798.6,1798.5,1.11212]
[1743762761964,3.2078,1798.6,1798.4,1.11214]
[1743762762258,3.2078,1798.8,1798.5,1.11212]
[1743762762460,3.2078,1798.8,1798.7,1.112]
[1743762762664,3.2078,1798.8,1798.6,1.112]
[1743762762863,1.4699,1798.7,1798.6,1.112]
[1743762763566,3.2078,1798.8,1798.7,1.112]
[1743762763864,3.2078,1798.8,1798.6,4.952]
[1743762764057,1.11229,1798.3,1798.0,0.00833704]
[1743762764367,3.2078,1798.1,1798.0,1.12076704]
[1743762764560,3.2078,1798.1,1798.0,0.00833704]
[1743762765157,3.2078,1798.1,1798.0,1.12076704]
[1743762765362,3.2078,1798.3,1798.2,1.11231]
[1743762765666,1.8961,1798.4,1798.3,1.11225]
[1743762765968,1.8961,1798.4,1798.0,4.97233704]
[1743762766162,3.2078,1798.1,1798.0,6.08473704]
[1743762766365,4.32017,1798.1,1798.0,0.00833704]
[1743762766567,1.11255,1797.9,1797.3,14.51770278]
[1743762766866,3.2078,1797.6,1797.5,1.11271]
[1743762767070,2.4117,1797.8,1797.7,1.11262]
[1743762767365,5.6195,1797.8,1797.6,1.11263]
[1743762767569,5.6195,1797.8,1797.4,45.753]
[1743762767763,2.4117,1797.8,1797.4,45.753]
[1743762767963,2.4117,1797.8,1797.7,1.11262]
[1743762768361,0.9704,1798.4,1798.3,1.11225]
[1743762768570,2.492,1798.4,1797.9,4.942]
[1743762768869,4.0979,1798.3,1798.1,1.11236]
[1743762769068,1.5216,1798.2,1798.0,40.8]
[1743762769265,1.11263,1797.7,1797.2,3.2078]
[1743762769464,1.5216,1797.6,1797.3,1.11283]
[1743762769767,3.2078,1797.5,1797.4,41.9128]
[1743762769969,3.2078,1797.5,1797.4,40.8]
[1743762770368,1.1128,1797.4,1797.3,0.00833704]
[1743762770573,2.6272,1797.4,1797.3,0.00833704]
[1743762770968,1.113,1797.1,1796.9,40.8]
[1743762771276,4.7222,1797.0,1796.9,40.8]
[1743762771480,4.7222,1797.0,1796.9,41.91311]
[1743762771670,3.2078,1797.2,1797.1,1.11299]
[1743762771979,3.2078,1797.2,1796.3,51.0666]
[1743762772177,3.2078,1797.2,1796.4,1.11336]
[1743762772178,3.2078,1796.6,1796.4,1.11336]
[1743762772470,3.2078,1796.6,1796.3,41.91345]
[1743762772773,1.5067,1796.5,1796.3,41.91347]
[1743762772972,1.5067,1796.5,1796.3,40.8]
[1743762773164,1.07883704,1796.7,1796.4,1.4005]
[1743762773369,1.5067,1797.0,1796.5,7.72438]
[1743762773565,1.5067,1797.0,1796.6,1.4005]
[1743762773773,3.2078,1796.9,1796.6,2.51377]
[1743762773974,3.2078,1797.3,1796.7,4.18358]
[1743762774278,2.61964,1797.2,1796.7,1.4005]
[1743762774574,1.51503704,1797.2,1796.9,1.11309]
[1743762774774,3.2078,1797.1,1797.0,1.4005]
[1743762775076,1.51503704,1797.2,1797.0,1.4005]
[1743762775268,0.00833704,1797.2,1797.0,1.4005]
[1743762775470,2.62797704,1797.2,1797.0,1.4005]
[1743762775766,0.00833704,1797.2,1797.1,1.11299]
[1743762775968,5.828,1798.3,1797.9,1.11243]
[1743762776275,1.4163,1798.1,1798.0,1.11243]
[1743762776576,1.4163,1798.1,1798.0,2.63223]
[1743762776767,1.4163,1798.1,1797.9,4.961]
[1743762776967,0.00833704,1798.2,1798.1,1.11234]
[1743762777166,0.00833704,1798.2,1798.0,4.7276]
[1743762777372,0.00833704,1798.2,1798.1,1.11237]
[1743762777880,0.00833704,1798.2,1798.1,3.61237]
[1743762778375,0.00833704,1798.2,1798.0,1.5198]
[1743762778584,0.00833704,1798.2,1798.1,4.972]
[1743762778974,0.00833704,1798.2,1798.1,6.08437]
[1743762779485,0.00833704,1798.2,1798.1,9.29217]
[1743762779680,14.784,1800.4,1798.1,9.29217]
[1743762779681,9.0358,1799.3,1799.2,1.11169]
[1743762779983,1.4266,1799.2,1799.0,4.973]
[1743762780184,1.4266,1799.2,1798.9,1.535]
[1743762780379,1.4266,1799.2,1799.0,3.2078]
[1743762780577,1.4266,1799.2,1799.1,3.2078]
[1743762780773,3.9266,1799.2,1798.8,44.0078]
[1743762780984,3.9266,1799.2,1799.0,0.00833704]
[1743762780985,4.6344,1799.2,1799.0,0.00833704]
[1743762781286,3.2078,1799.1,1799.0,0.00833704]
[1743762781485,1.4266,1799.1,1799.0,0.00833704]
[1743762781786,4.6344,1799.1,1799.0,0.00833704]
[1743762781982,1.4266,1799.1,1799.0,0.00833704]
[1743762782478,4.6344,1799.1,1799.0,0.00833704]
[1743762782887,8.2462,1799.1,1798.6,1.11202]
[1743762783079,3.2078,1798.9,1798.6,1.11202]
[1743762783383,1.5085,1798.8,1798.5,6.4763]
[1743762783575,1.0144,1799.0,1798.5,9.6841]
[1743762783783,1.0144,1799.0,1798.5,6.4763]
[1743762783986,4.2222,1799.0,1798.6,1.12039704]
[1743762784201,9.0358,1799.2,1798.6,0.00833704]
[1743762784414,4.7163,1799.2,1799.0,1.11179]
[1743762784617,5.82801,1799.2,1798.7,2.61728]
[1743762784923,1.5085,1799.2,1798.9,1.11182]
[1743762785116,1.5085,1799.2,1798.7,1.5053]
[1743762785318,1.5085,1799.2,1798.7,9.6941]
[1743762785500,1.5085,1799.2,1798.8,1.1119]
[1743762785701,3.2078,1799.1,1798.8,1.11194]
[1743762786014,1.5085,1799.2,1799.1,1.11175]
[1743762786213,3.21613704,1799.3,1798.9,1.5046]
[1743762786510,4.64773704,1799.3,1798.9,1.5046]
[1743762786714,3.2078,1799.1,1798.6,0.00833704]
[1743762786913,1.4316,1799.0,1798.9,1.11187]
[1743762787106,1.4316,1799.0,1798.7,1.5046]
[1743762787107,3.21613704,1799.3,1799.1,1.11173]
[1743762787304,4.64773704,1799.3,1799.1,1.11173]
[1743762787505,4.64773704,1799.3,1798.9,1.5046]
[1743762787702,1.43993704,1799.3,1798.9,1.5046]
[1743762787894,4.64773704,1799.3,1799.1,1.11169]
[1743762788189,4.64773704,1799.3,1798.8,4.977]
[1743762788380,1.43993704,1799.3,1799.2,1.11169]
[1743762788580,0.00833704,1799.3,1799.2,1.11169]
[1743762788778,7.04e-06,1799.3,1799.2,1.11169]
[1743762788980,7.04e-06,1799.3,1799.2,2.55669]
[1743762789585,7.04e-06,1799.3,1799.1,4.991]
[1743762789586,7.04e-06,1799.3,1799.1,1.11173]
[1743762789790,7.04e-06,1799.3,1799.1,4.986]
[1743762789984,3.2078,1799.2,1798.9,6.09787]
[1743762790287,7.04e-06,1799.3,1798.9,4.986]
[1743762790483,3.2078,1799.1,1799.0,1.445]
[1743762790681,1.4378,1799.2,1799.0,2.55681]
[1743762790877,3.2078,1799.1,1798.6,0.00833704]
[1743762791083,1.0661,1799.1,1798.7,2.78]
[1743762791289,1.0661,1799.1,1798.9,1.11183]
[1743762791585,4.6498,1799.0,1798.8,2.62214]
[1743762791788,4.6498,1799.0,1798.8,1.5102]
[1743762791988,4.6498,1799.0,1798.8,2.62211]
[1743762792484,4.6498,1799.0,1798.6,0.00833704]
[1743762792686,1.442,1799.0,1798.8,1.11188]
[1743762792887,4.6498,1799.0,1798.7,1.5102]
[1743762793086,4.6498,1799.0,1798.8,1.11191]
[1743762793487,4.6498,1799.0,1798.7,6.4922]
[1743762793788,4.6498,1799.0,1798.7,7.60414]
[1743762794386,5.76162,1799.0,1798.7,7.60414]
[1743762794589,4.31975,1798.8,1798.6,0.00833704]
[1743762794790,1.4121,1798.7,1798.6,0.00833704]
[1743762795284,5.0241,1798.7,1798.6,0.00833704]
[1743762795484,1.11207,1798.6,1798.3,1.11222]
[1743762795793,4.9342,1798.7,1798.2,4.978]
[1743762795794,4.6199,1798.5,1798.4,1.11218]
[1743762795986,3.2078,1798.7,1798.3,4.17181]
[1743762796191,3.2078,1798.7,1798.4,1.3912]
[1743762796496,9.0358,1799.0,1798.6,1.11206]
[1743762796696,10.4479,1799.0,1798.7,2.50317]
[1743762796893,10.4479,1799.0,1798.8,1.11192]
[1743762797086,1.0661,1799.1,1799.0,1.11181]
[1743762797595,2.5,1799.1,1798.4,0.00833704]
[1743762797788,3.2078,1798.7,1798.4,0.00833704]
[1743762798093,5.7076,1799.0,1798.5,2.78031]
[1743762798294,5.7076,1799.0,1798.6,6.4133]
[1743762798597,4.3198,1798.8,1798.4,1.12049704]
[1743762798791,4.6685,1798.7,1798.4,0.00833704]
[1743762798987,3.2078,1798.5,1798.4,0.00833704]
[1743762799189,1.11209,1798.6,1798.4,0.00833704]
[1743762799390,1.4607,1798.5,1798.4,0.00833704]
[1743762799597,4.6685,1798.5,1798.4,0.00833704]
[1743762799998,1.4607,1798.5,1798.4,1.43163704]
[1743762800200,1.4607,1798.5,1798.4,2.54381704]
[1743762800395,3.2078,1798.9,1798.4,1.43163704]
[1743762800601,4.6191,1798.9,1798.7,1.11196]
[1743762800801,1.11201,1798.7,1798.5,4.969]
[1743762801093,3.2078,1798.8,1798.5,4.969]
[1743762801294,1.11206,1798.6,1798.5,4.969]
[1743762801499,1.11212,1798.5,1798.4,0.00833704]
[1743762801697,2.4739,1798.5,1798.4,0.00833704]
[1743762801999,3.58602,1798.5,1798.4,0.00833704]
[1743762802401,2.4739,1798.5,1798.4,0.00833704]
[1743762803003,2.4739,1798.5,1798.4,41.92051704]
[1743762803304,3.2078,1798.8,1798.4,40.80833704]
[1743762803501,4.6381,1798.8,1798.6,1.11204]
[1743762803904,4.6381,1798.8,1798.6,1.11202]
[1743762804105,4.6381,1798.8,1798.7,1.112]
[1743762804304,3.2078,1798.8,1798.7,1.112]
[1743762804499,1.0598,1799.0,1798.6,4.946]
[1743762804800,1.0598,1799.0,1798.9,1.11187]
[1743762805004,7.04e-06,1799.3,1798.9,2.77967]
[1743762805306,7.04e-06,1799.3,1799.2,1.11169]
[1743762805698,7.04e-06,1799.3,1799.2,44.41169]
[1743762805903,7.04e-06,1799.3,1799.2,45.93339]
[1743762808304,7.04e-06,1799.3,1799.2,49.14119]
[1743762809405,7.04e-06,1799.3,1799.2,8.34119]
[1743762809701,7.04e-06,1799.3,1799.2,49.14119]
[1743762811101,7.04e-06,1799.3,1799.2,48.34439]
[1743762811502,7.04e-06,1799.3,1799.2,50.84439]
[1743762812907,7.04e-06,1799.3,1799.2,7.54939]
[1743762813205,3.2078,1800.0,1799.3,2.77908]
[1743762813407,6.915,1800.2,1799.4,2.55332]
[1743762813408,1.5333,1799.6,1799.4,2.55332]
[1743762813710,3.2078,1799.5,1799.2,4.92]
[1743762814012,1.5333,1799.4,1799.3,1.11163]
[1743762815604,1.5333,1799.4,1799.2,1.12000704]
[1743762815909,1.5333,1799.4,1799.2,0.00833704]
[1743762816109,1.5333,1799.4,1799.2,1.11997704]
[1743762816507,3.2078,1799.3,1799.2,1.11997704]
[1743762816705,3.2078,1799.3,1798.6,4.893]
[1743762816911,3.2078,1799.0,1798.5,1.5148]
[1743762817110,2.6296,1798.9,1798.6,1.11202]
[1743762817310,3.2078,1798.8,1798.6,1.11204]
[1743762817510,1.5332,1798.7,1798.5,1.11211]
[1743762817807,1.5332,1798.7,1798.5,1.11209]
[1743762818007,1.5332,1798.7,1798.6,1.11206]
[1743762819411,1.5332,1798.7,1798.4,40.80833704]
[1743762819609,3.2078,1798.6,1798.4,40.80833704]
[1743762819812,1.4714,1798.5,1798.4,41.92048704]
[1743762820509,1.0964,1798.9,1798.8,1.11194]
[1743762820808,1.4714,1799.1,1799.0,1.11181]
[1743762821313,1.0658,1799.2,1799.1,1.11175]
[1743762822612,4.2736,1799.2,1799.1,1.11175]
[1743762822806,1.0658,1799.2,1799.1,1.11175]
[1743762823603,1.0638,1799.4,1799.3,1.11163]
[1743762823806,1.0638,1799.4,1799.2,1.3978]
[1743762824006,4.6436,1799.3,1799.2,1.11166]
[1743762824710,7.1436,1799.3,1799.2,1.11166]
[1743762825510,4.6436,1799.3,1799.2,1.11166]
[1743762826013,7.1436,1799.3,1798.8,1.5326]
[1743762826214,3.2078,1798.9,1798.4,0.00833704]
[1743762826509,3.2078,1798.5,1798.4,0.00833704]
[1743762826716,3.2078,1798.5,1798.4,1.11218]
[1743762826920,5.7078,1798.5,1798.4,1.11218]
[1743762827110,5.7078,1798.5,1798.2,2.78077]
[1743762827310,1.516,1798.4,1798.3,1.11225]
[1743762827610,1.516,1798.4,1798.1,2.78088]
[1743762827810,3.2078,1798.3,1798.2,1.11231]
[1743762828308,17.48909,1798.3,1798.0,1.11241]
[1743762828504,3.2078,1798.1,1798.0,1.11242]
[1743762828917,5.7078,1798.1,1798.0,1.11242]
[1743762829718,5.7078,1798.1,1797.5,2.78178]
[1743762829914,5.7078,1798.1,1797.1,3.2078]
[1743762829915,3.2078,1797.7,1797.6,1.11268]
[1743762830418,5.7078,1797.7,1797.6,1.11268]
[1743762830714,5.7078,1797.7,1797.2,2.78232]
[1743762830921,1.415,1797.6,1797.5,1.11268]
[1743762832721,3.915,1797.6,1797.1,1.432]
[1743762833023,3.2078,1797.5,1797.0,4.818]
[1743762833225,1.415,1797.4,1797.3,1.11283]
[1743762833816,1.415,1797.4,1797.0,7.36299]
[1743762834018,1.415,1797.4,1797.1,1.11297]
[1743762834224,1.415,1797.4,1797.1,1.11296]
[1743762834423,1.415,1797.4,1797.0,7.36301]
[1743762834923,1.415,1797.4,1797.1,1.11298]
[1743762835221,1.415,1797.4,1797.1,3.2078]
[1743762835423,1.415,1797.4,1797.2,2.53839]
[1743762835624,1.415,1797.4,1797.3,1.11286]
[1743762835926,0.00833704,1797.5,1797.4,1.1128]
[1743762836121,0.00833704,1797.5,1797.4,2.5383]
[1743762836327,0.00833704,1797.5,1797.3,4.793]
[1743762836518,0.00833704,1797.5,1797.3,5.90584]
[1743762837121,1.40783704,1797.5,1797.3,4.793]
[1743762837322,1.40783704,1797.5,1796.9,40.8]
[1743762837323,3.90783704,1797.5,1796.9,40.8]
[1743762837522,4.2997,1797.4,1797.0,1.11303]
[1743762837719,1.3995,1797.3,1796.8,1.4945]
[1743762837921,1.3995,1797.3,1796.8,40.8]
[1743762838220,4.2145,1797.2,1796.8,4.787]
[1743762838523,1.3995,1797.1,1796.8,5.90012]
[1743762838720,1.3995,1797.1,1796.8,1.11312]
[1743762838919,1.3995,1797.1,1796.5,3.2078]
[1743762838920,1.3995,1797.1,1796.7,1.11319]
[1743762839115,4.6073,1797.1,1796.6,4.782]
[1743762839315,3.2078,1796.9,1796.7,1.11324]
[1743762839720,1.4118,1796.8,1796.5,1.11334]
[1743762839925,1.4118,1796.8,1796.7,1.11324]
[1743762840525,1.4118,1796.8,1796.6,1.5063]
[1743762840825,1.4118,1796.8,1796.4,1.11338]
[1743762841125,1.4118,1796.8,1796.3,2.61975]
[1743762841321,2.4512,1796.8,1796.4,1.1134]
[1743762841526,2.4512,1796.8,1796.5,1.11332]
[1743762841727,1.4118,1796.8,1796.4,2.78356]
[1743762842024,1.4118,1796.8,1796.6,1.11324]
[1743762842231,1.4118,1796.8,1796.3,1.11345]
[1743762842533,3.2078,1796.7,1796.3,1.11345]
[1743762842717,1.4026,1796.6,1796.3,2.64285]
[1743762843023,1.4026,1796.6,1796.4,1.11341]
[1743762843224,1.4026,1796.6,1796.4,1.11342]
[1743762843427,1.4026,1796.6,1796.5,1.11336]
[1743762843725,4.6104,1797.1,1796.9,1.11311]
[1743762843928,4.6104,1797.1,1796.6,7.52044]
[1743762844127,4.6104,1797.1,1796.8,1.11311]
[1743762844331,4.6104,1797.1,1796.9,2.64248]
[1743762844731,3.21613704,1797.5,1796.9,9.06016]
[1743762845041,1.11292,1797.3,1796.9,7.39049]
[1743762845227,1.11302,1797.1,1796.8,3.2078]
[1743762845534,2.51567,1797.0,1796.8,3.2078]
[1743762845735,1.4026,1797.0,1796.9,1.11311]
[1743762845938,1.11298,1797.2,1796.9,1.4412]
[1743762846231,2.52808,1797.3,1797.0,1.11304]
[1743762846423,1.4152,1797.3,1796.9,1.4412]
[1743762846629,1.4152,1797.3,1797.1,1.11297]
[1743762846821,1.4152,1797.3,1797.2,2.55413]
[1743762847029,0.00833704,1797.5,1797.3,1.11286]
[1743762847227,0.00833704,1797.5,1797.4,1.4412]
[1743762847430,0.00833704,1797.5,1797.4,2.554]
[1743762847638,0.00833704,1797.5,1797.4,1.4412]
[1743762847930,5.71613704,1797.5,1796.7,40.8]
[1743762848229,1.11301,1797.1,1796.8,2.55435]
[1743762848434,3.2078,1796.9,1796.8,2.55435]
[1743762848637,3.2078,1796.9,1796.8,1.4412]
[1743762848831,4.32094,1796.9,1796.6,1.11328]
[1743762849029,1.5104,1796.8,1796.5,3.66471]
[1743762849238,1.5104,1796.8,1796.5,2.5514]
[1743762849435,3.2078,1796.9,1796.8,1.11317]
[1743762849636,3.2078,1796.9,1796.6,1.4742]
[1743762849935,1.5104,1796.8,1796.7,1.11324]
[1743762851043,1.5104,1796.8,1796.6,2.58745]
[1743762851337,4.32105,1796.7,1796.4,5.8494]
[1743762851538,1.5104,1796.6,1796.5,1.11336]
[1743762852034,1.5104,1796.6,1796.4,7.32358]
[1743762852539,2.6237,1796.6,1796.4,6.2102]
[1743762852831,3.2078,1796.5,1796.4,7.32362]
[1743762853032,3.2078,1796.7,1796.5,1.11332]
[1743762853235,3.2078,1796.7,1796.2,1.0441]
[1743762853429,4.32131,1796.3,1795.8,8.54909]
[1743762853735,1.5176,1796.2,1795.8,2.4618]
[1743762853937,3.2078,1796.1,1795.6,2.13347]
[1743762854237,3.2078,1795.7,1795.4,1.11401]
[1743762854428,4.32166,1795.7,1795.5,1.4072]
[1743762854735,1.5176,1795.6,1795.5,1.4072]
[1743762855037,1.5176,1795.6,1795.2,3.2078]
[1743762855038,2.63152,1795.6,1795.2,1.11413]
[1743762855337,3.2078,1795.3,1795.0,1.11426]
[1743762855534,9.4384,1795.6,1795.3,1.11407]
[1743762855734,1.11398,1795.5,1795.4,1.4968]
[1743762855933,1.5165,1795.5,1795.1,1.1142]
[1743762856239,2.63053,1795.5,1795.2,2.61096]
[1743762856429,1.5165,1795.5,1795.2,2.61096]
[1743762856630,1.11406,1795.4,1795.2,1.4968]
[1743762856830,4.32186,1795.4,1795.2,1.4968]
[1743762857024,3.2078,1795.4,1795.2,1.4968]
[1743762857230,3.2078,1795.4,1794.8,3.2078]
[1743762857435,4.32201,1795.2,1795.0,1.4968]
[1743762857637,1.11423,1795.1,1795.0,1.4968]
[1743762857936,0.00833704,1795.3,1795.0,1.4968]
[1743762858138,1.12245704,1795.3,1795.0,1.4968]
[1743762858437,0.00833704,1795.3,1795.0,1.4968]
[1743762858931,1.12245704,1795.3,1795.0,4.7046]
[1743762859141,1.12245704,1795.3,1795.0,1.4968]
[1743762859637,1.12246704,1795.3,1795.0,1.4968]
[1743762859837,3.2078,1796.3,1795.2,2.78539]
[1743762860028,3.2078,1796.1,1795.6,40.8]
[1743762860233,1.4131,1796.2,1795.7,1.3982]
[1743762860533,3.2078,1796.1,1795.7,1.3982]
[1743762860737,1.4131,1796.0,1795.7,1.3982]
[1743762861134,2.53510704,1796.0,1795.7,1.40653704]
[1743762861337,0.00833704,1796.0,1795.8,1.11379]
[1743762861648,0.00833704,1796.0,1795.9,1.4751]
[1743762861940,0.00833704,1796.0,1795.7,0.00833704]
[1743762862130,1.11378,1795.9,1795.7,0.00833704]
[1743762862334,1.12201704,1796.0,1795.7,0.00833704]
[1743762862633,1.12201704,1796.0,1795.7,1.48343704]
[1743762862938,4.6724,1795.9,1795.7,0.00833704]
[1743762863134,1.4646,1795.9,1795.7,0.00833704]
[1743762863641,1.4646,1795.9,1795.7,1.48343704]
[1743762864038,0.00833704,1796.0,1795.7,7.32325704]
[1743762864239,3.2078,1795.9,1795.7,0.00833704]
[1743762864444,1.4332,1795.8,1795.7,0.00833704]
[1743762865035,14.4912,1795.8,1794.5,9.1738]
[1743762865242,3.2078,1795.0,1794.7,1.4929]
[1743762865438,3.2078,1795.4,1794.8,2.78601]
[1743762865740,4.641,1795.4,1795.1,1.11421]
[1743762865928,4.641,1795.4,1794.7,7.52615]
[1743762865929,3.2078,1795.2,1794.7,4.74]
[1743762866134,3.2078,1795.2,1794.9,1.4929]
[1743762866335,1.11429,1795.0,1794.7,5.85443]
[1743762866631,1.4332,1794.9,1794.7,5.85447]
[1743762866833,2.54755,1794.9,1794.8,1.4929]
[1743762867030,1.11448,1794.7,1794.4,5.85965]
[1743762867237,3.2078,1794.6,1794.4,4.745]
[1743762867536,5.73447,1794.6,1794.3,2.50181]
[1743762867735,5.73447,1794.6,1794.3,1.3871]
[1743762868040,3.2078,1795.5,1795.3,1.1141]
[1743762868229,1.42043704,1795.4,1795.0,3.2078]
[1743762868436,5.9934,1795.1,1794.4,5.89863]
[1743762868636,1.11449,1794.7,1794.4,7.28573]
[1743762868836,1.4121,1794.6,1794.4,2.50173]
[1743762869035,3.2078,1795.1,1794.5,2.78651]
[1743762869340,3.2078,1795.2,1794.6,6.1861]
[1743762869640,2.52637,1795.1,1794.7,1.11446]
[1743762869834,1.11418,1795.2,1794.8,1.3871]
[1743762870138,1.11434,1795.0,1794.8,1.3871]
[1743762870343,3.2078,1795.1,1794.8,1.3871]
[1743762870543,3.2078,1794.9,1794.8,1.3871]
[1743762870929,4.6261,1795.1,1794.8,1.3871]
[1743762871145,3.2078,1794.9,1794.5,1.0062]
[1743762871335,1.11453,1794.7,1794.4,7.31345]
[1743762871534,1.11453,1794.7,1794.4,6.1988]
[1743762871735,2.53287,1794.6,1794.4,1.4038]
[1743762872043,1.1146,1794.5,1794.4,1.4038]
[1743762872335,1.4183,1794.5,1794.3,4.794]
[1743762872537,1.11466,1794.4,1794.2,2.4117]
[1743762873134,2.54128704,1794.5,1794.2,2.4117]
[1743762873334,1.11468,1794.4,1794.2,2.4117]
[1743762873534,0.00833704,1794.5,1794.3,1.11472]
[1743762873730,0.00833704,1794.5,1794.4,1.493]
[1743762874137,1.12293704,1794.5,1794.2,1.0079]
[1743762874343,2.54443704,1794.5,1794.2,2.60778]
[1743762874543,4.63763704,1794.5,1794.4,1.11466]
[1743762874738,2.54443704,1794.5,1794.2,1.493]
[1743762874938,1.11476,1794.3,1794.1,0.21854683]
[1743762875143,3.2078,1794.4,1794.1,0.21854683]
[1743762875343,1.4215,1794.2,1794.1,0.21854683]
[1743762875644,4.6293,1794.2,1794.1,0.21854683]
[1743762876135,3.2078,1794.2,1794.1,0.21854683]
[1743762876330,1.4228,1794.4,1794.1,0.21854683]
[1743762876834,3.21613704,1794.5,1794.2,4.76]
[1743762877032,0.00833704,1794.5,1794.4,1.11466]
[1743762877440,0.00833704,1794.5,1794.3,4.218]
[1743762877644,0.00833704,1794.5,1794.3,5.33267]
[1743762877943,0.00833704,1794.5,1794.4,1.11466]
[1743762878241,2.78668,1794.4,1793.4,5.563]
[1743762878538,3.2078,1793.9,1793.2,2.78853]
[1743762878737,3.2078,1793.9,1793.4,5.99597]
[1743762878933,3.2078,1794.1,1793.6,5.99557]
[1743762879139,3.70425317,1794.3,1794.2,1.11479]
[1743762879344,3.2078,1794.6,1793.7,1.0175]
[1743762879345,3.2078,1794.6,1793.9,8.3028]
[1743762879540,0.0083605,1794.4,1794.1,1.11483]
[1743762879838,3.2161605,1794.4,1794.0,1.11489]
[1743762880041,5.49761367,1794.4,1793.9,3.2078]
[1743762880238,5.49761367,1794.4,1794.0,5.093]
[1743762880546,5.49761367,1794.4,1794.1,5.089]
[1743762880748,0.0083605,1794.4,1794.1,9.41161]
[1743762880940,0.0083605,1794.4,1794.2,2.0591]
[1743762881851,4.32252,1794.3,1794.2,2.0591]
[1743762882150,0.0083605,1794.4,1794.2,2.0591]
[1743762882347,0.0083605,1794.4,1794.3,1.11472]
[1743762882553,0.0083605,1794.4,1794.2,5.67384]
[1743762882755,0.0083605,1794.4,1794.3,1.11472]
[1743762883051,0.0083605,1794.4,1794.3,3.61472]
[1743762883253,0.0083605,1794.4,1794.2,2.0591]
[1743762883555,0.0083605,1794.4,1794.3,1.11472]
[1743762883948,0.0083605,1794.4,1794.3,2.5]
[1743762884440,1.4706,1794.8,1794.3,6.82252]
[1743762884752,4.3222,1794.9,1794.5,1.1146]